fUSD/lending_fUSD_20240215
["ID","MTS","AMOUNT","RATE_DAILY","PERIOD"]
[314109431,1707988238294,-2004.1664,0.00039545,2]
[314109432,1707988238304,-6279.3014,0.00039545,2]
[314109433,1707988238313,-2500.0,0.00039545,2]
[314109434,1707988238322,-500.0,0.00039559,7]
[314109435,1707988238333,-488.88879128,0.00039559,7]
[314109436,1707988238345,-944.05,0.00039559,7]
[314109437,1707988238354,-500.0,0.00039559,7]
[314109438,1707988238364,-353.74,0.00039559,7]
[314109439,1707988238374,-745.31,0.00039559,7]
[314109440,1707988238384,-500.0,0.00039559,7]
[314109441,1707988238394,-185.01687671,0.00039559,7]
[314109442,1707988238403,-500.0,0.00039559,7]
[314109443,1707988238413,-500.0,0.00039559,7]
[314109444,1707988238424,-500.0,0.00039559,7]
[314109445,1707988238434,-485.93296302,0.00039559,7]
[314109446,1707988238443,-449.17697849,0.00039559,7]
[314109447,1707988238453,-500.0,0.00039559,7]
[314109448,1707988238462,-500.0,0.00039559,7]
[314109449,1707988238471,-500.0,0.00039559,7]
[314109450,1707988238481,-500.0,0.00039559,7]
[314109451,1707988238490,-500.0,0.00039559,7]
[314109452,1707988238499,-395.15876152,0.00039559,7]
[314109453,1707988238508,-237.70765368,0.00039559,7]
[314109454,1707988238518,-12589.72,0.00039559,7]
[314109455,1707988238527,-820.82,0.00039559,7]
[314109456,1707988238536,-500.0,0.00039559,7]
[314109457,1707988238545,-500.0,0.00039559,7]
[314109458,1707988238555,-506.38430389,0.00039559,7]
[314109459,1707988238564,-528.22,0.00039559,7]
[314109460,1707988238573,-206.85342656,0.00039559,7]
[314109461,1707988238583,-566.45226363,0.00039559,7]
[314109462,1707988238592,-578.52346917,0.00039559,7]
[314109463,1707988238601,-500.0,0.00039559,7]
[314109464,1707988238610,-500.0,0.00039559,7]
[314109465,1707988238619,-500.0,0.00039559,7]
[314109466,1707988238629,-500.0,0.00039559,7]
[314109467,1707988238638,-500.0,0.00039559,7]
[314109468,1707988238647,-519.14382873,0.00039559,7]
[314109469,1707988238657,-500.0,0.00039559,7]
[314109470,1707988238666,-505.14821963,0.00039559,7]
[314109471,1707988238675,-500.0,0.00039559,7]
[314109472,1707988238684,-567.78090321,0.00039559,7]
[314109473,1707988238694,-500.0,0.00039559,7]
[314109474,1707988238703,-500.0,0.00039559,7]
[314109475,1707988238712,-319.83582365,0.00039597,9]
[314109476,1707988238722,-500.0,0.00039644,7]
[314109477,1707988238731,-412.26,0.00039644,7]
[314109478,1707988238741,-500.0,0.00039644,7]
[314109479,1707988238750,-500.0,0.00039644,7]
[314109480,1707988238759,-500.0,0.00039644,7]
[314109481,1707988238768,-397.74,0.00039644,7]
[314109482,1707988238777,-500.0,0.00039644,7]
[314109483,1707988238787,-500.0,0.00039644,7]
[314109484,1707988238796,-167.91,0.00039644,7]
[314109485,1707988238805,-500.0,0.00039644,7]
[314109486,1707988238814,-500.0,0.00039644,7]
[314109487,1707988238823,-500.0,0.00039644,7]
[314109488,1707988238833,-500.0,0.00039644,7]
[314109489,1707988238842,-602.31,0.00039644,7]
[314109490,1707988238851,-283.99,0.00039644,7]
[314109491,1707988238861,-500.0,0.00039644,7]
[314109492,1707988238870,-468.25,0.00039644,7]
[314109493,1707988238880,-746.15,0.00039644,7]
[314109494,1707988238889,-607.61,0.00039644,7]
[314109495,1707988238898,-468.42,0.00039644,7]
[314109496,1707988238907,-500.0,0.00039644,7]
[314109497,1707988238916,-500.0,0.00039644,7]
[314109498,1707988238925,-346.56,0.00039644,7]
[314109499,1707988238934,-500.0,0.00039644,7]
[314109500,1707988238943,-500.0,0.00039644,7]
[314109501,1707988238952,-500.0,0.00039644,7]
[314109502,1707988238961,-466.12,0.00039644,7]
[314109503,1707988238970,-549.37650201,0.00039644,7]
[314109504,1707988238979,-105.26880166,0.00039645,2]
[314109505,1707988238991,-7928.93018408,0.00039645,2]
[314109506,1707988239002,-609.47680672,0.00039645,2]
[314109510,1707988240201,-1125.4,0.00039644,7]
[314109511,1707988240210,-2540.97307841,0.00039645,2]
[314109512,1707988240258,-637.8214916,0.00039645,2]
[314109513,1707988240269,-1365.74895345,0.00039645,2]
[314109514,1707988240316,-7910.42917173,0.00039645,2]
[314109515,1707988240329,-544.13000421,0.00039645,2]
[314109516,1707988240374,-2925.98626232,0.00039645,2]
[314109517,1707988240434,-763.04314098,0.00039645,2]
[314109518,1707988241213,-865.44923091,0.00039645,2]
[314109519,1707988241225,-428.1062567,0.00039645,2]
[314109521,1707988242689,-6992.44712729,0.00039645,2]
[314109522,1707988242702,-2005.77526688,0.00039645,2]
[314109523,1707988242720,-12443.1755401,0.00039645,2]
[314109524,1707988242732,-3915.1351933,0.00039645,2]
[314109525,1707988242743,-4150.31337314,0.00039645,2]
[314109526,1707988242756,-9986.2,0.00039645,2]
[314109527,1707988242775,-13468.81371338,0.00039645,2]
[314109541,1707988245602,-438.97155858,0.00039645,2]
[314109542,1707988245666,-19973.80484456,0.00039645,2]
[314109543,1707988245677,-150.0,0.00039697,2]
[314109544,1707988245686,-500.0,0.00039744,7]
[314109545,1707988245696,-542.27669477,0.00039744,120]
[314109546,1707988245706,-167.72123465,0.00039744,7]
[314109547,1707988245715,-500.0,0.00039744,7]
[314109548,1707988245725,-639.03,0.00039744,7]
[314109549,1707988245734,-500.0,0.00039744,7]
[314109550,1707988245744,-500.0,0.00039744,7]
[314109551,1707988245754,-500.0,0.00039744,7]
[314109552,1707988245763,-944.05,0.00039833,7]
[314109553,1707988245773,-500.0,0.00039833,7]
[314109554,1707988245783,-745.31,0.00039833,7]
[314109555,1707988245792,-500.0,0.00039833,7]
[314109556,1707988245802,-500.0,0.00039833,7]
[314109557,1707988245812,-12589.72,0.00039833,7]
[314109558,1707988245822,-820.82,0.00039833,7]
[314109559,1707988245832,-528.22,0.00039833,7]
[314109560,1707988245842,-500.0,0.00039833,7]
[314109561,1707988245852,-418.41459698,0.00039833,7]
[314109562,1707988245862,-1120.0,0.00039848,20]
[314109563,1707988245872,-738.0,0.00039848,20]
[314109564,1707988245883,-1200.0,0.000399,20]
[314109565,1707988245892,-213.11163389,0.000399,12]
[314109566,1707988245903,-500.0,0.00039918,7]
[314109567,1707988245914,-500.0,0.00039918,7]
[314109568,1707988245924,-632.93,0.00039918,7]
[314109569,1707988245935,-245.88,0.00039918,7]
[314109570,1707988245948,-500.0,0.00039918,7]
[314109571,1707988245959,-500.0,0.00039918,7]
[314109572,1707988245970,-244.39,0.00039918,7]
[314109573,1707988245979,-279.57,0.00039918,7]
[314109574,1707988245990,-500.0,0.00039918,7]
[314109575,1707988246000,-456.09,0.00039918,7]
[314109576,1707988246009,-215.46,0.00039918,7]
[314109577,1707988246019,-746.15,0.00039918,7]
[314109578,1707988246029,-500.0,0.00039918,7]
[314109579,1707988246040,-500.0,0.00039918,7]
[314109580,1707988246049,-500.0,0.00039918,7]
[314109581,1707988246058,-500.0,0.00039918,7]
[314109582,1707988246069,-500.0,0.00039918,7]
[314109583,1707988246080,-1125.4,0.00039918,7]
[314109584,1707988246091,-200.0,0.00039987,2]
[314109585,1707988246102,-199.85791404,0.0003999,2]
[314109586,1707988246112,-362.07682119,0.00039991,2]
[314109587,1707988246122,-2132.3771446,0.00039991,2]
[314109588,1707988246131,-500.0,0.00039999,7]
[314109589,1707988246140,-100000.0,0.0004,20]
[314109590,1707988246151,-1147.90483687,0.0004,2]
[314109591,1707988246163,-587.34204817,0.0004,10]
[314109592,1707988246173,-19081.31350536,0.0004,7]
[314109593,1707988246211,-1151.80844877,0.0004,7]
[314109594,1707988246223,-258.90026698,0.0004,7]
[314109595,1707988246255,-1149.52,0.0004,7]
[314109604,1707989431768,-242.0,0.00024999,2]
[314109605,1707989431777,-350.0,0.00025,3]
[314109606,1707989431786,-400.0,0.00027,3]
[314109607,1707989431795,-8.0,0.00029,3]
[314109642,1707989437737,-442.0,0.00029,3]
[314109643,1707989437748,-466.06893666,0.00034241,10]
[314109644,1707989437757,-303.72757076,0.00034312,10]
[314109645,1707989437767,-425.9,0.0003643,2]
[314109646,1707989437776,-2526.0,0.000371,3]
[314109647,1707989437785,-250.0,0.00037583,2]
[314109648,1707989437795,-250.0,0.0003763,2]
[314109649,1707989437805,-2000.0,0.00037666,2]
[314109650,1707989437814,-164.3,0.00037693,2]
[314109651,1707989437824,-205.0,0.0003773,2]
[314109652,1707989437833,-1429.25,0.00037805,2]
[314109653,1707989437843,-755.0,0.00037823,2]
[314109654,1707989437853,-152.323226,0.000379,2]
[314109655,1707989437863,-150.0,0.00037975,2]
[314109656,1707989437872,-3229.47578882,0.00038,3]
[314109657,1707989437901,-16770.52421118,0.00038,3]
[314109658,1707989437911,-192.86,0.00038058,2]
[314109659,1707989437920,-39.28446119,0.00038129,111]
[314109660,1707989437935,-210.71553881,0.00038129,111]
[314109661,1707989437946,-640.0,0.00038325,2]
[314109662,1707989437955,-5712.22,0.00038356,15]
[314109663,1707989437964,-174.84,0.0003846,2]
[314109664,1707989437974,-425.9,0.00038694,2]
[314109665,1707989437983,-360.0,0.00038881,2]
[314109666,1707989437992,-275.34316015,0.0003899,30]
[314109667,1707989438002,-155.0,0.00039,2]
[314109668,1707989438011,-177.34,0.00039,2]
[314109669,1707989438021,-500.0,0.00039,2]
[314109670,1707989438030,-2301.53644403,0.00039309,2]
[314109671,1707989438043,-800.80795597,0.00039309,2]
[314109672,1707989438052,-1058.7756,0.00039359,2]
[314109673,1707989438061,-654.5201,0.00039359,2]
[314109674,1707989438070,-1574.95097671,0.00039359,2]
[314109675,1707989438082,-33472.29007622,0.00039359,2]
[314109676,1707989438091,-35047.24105293,0.00039409,2]
[314109677,1707989438100,-875.6893,0.00039459,2]
[314109678,1707989438110,-1944.2795,0.00039459,2]
[314109679,1707989438119,-2083.5792,0.00039459,2]
[314109680,1707989438128,-137096.4221,0.00039459,2]
[314109681,1707989438138,-3535.1159,0.00039459,2]
[314109682,1707989438147,-35047.24105293,0.00039459,2]
[314109683,1707989438157,-755.0,0.00039467,2]
[314109684,1707989438166,-213.11163389,0.00039529,11]
[314109685,1707989438175,-177.34,0.00039548,2]
[314109686,1707989438184,-504.85247061,0.00039548,2]
[314109688,1707989438194,-500.0,0.00039558,7]
[314109690,1707989438203,-500.0,0.00039558,7]
[314109692,1707989438216,-683.97,0.00039558,7]
[314109694,1707989438225,-500.0,0.00039558,7]
[314109697,1707989438234,-500.0,0.00039558,7]
[314109699,1707989438244,-200.0,0.00039558,7]
[314109701,1707989438253,-1000.0,0.00039559,5]
[314109703,1707989438262,-1000.0,0.00039559,5]
[314109705,1707989438271,-1000.0,0.00039559,5]
[314109707,1707989438280,-1000.0,0.00039559,5]
[314109709,1707989438290,-1000.0,0.00039559,5]
[314109711,1707989438299,-1000.0,0.00039559,5]
[314109713,1707989438308,-1000.0,0.00039559,5]
[314109715,1707989438319,-1000.0,0.00039559,5]
[314109717,1707989438328,-1000.0,0.00039559,5]
[314109719,1707989438337,-1000.0,0.00039559,5]
[314109721,1707989438346,-1000.0,0.00039559,5]
[314109723,1707989438356,-1000.0,0.00039559,5]
[314109725,1707989438365,-1000.0,0.00039559,5]
[314109727,1707989438374,-1000.0,0.00039559,5]
[314109729,1707989438383,-1000.0,0.00039559,5]
[314109731,1707989438393,-1000.0,0.00039559,5]
[314109733,1707989438402,-1000.0,0.00039559,5]
[314109735,1707989438411,-1000.0,0.00039559,5]
[314109737,1707989438421,-1000.0,0.00039559,5]
[314109739,1707989438430,-1000.0,0.00039559,5]
[314109741,1707989438439,-1000.0,0.00039559,5]
[314109743,1707989438448,-1000.0,0.00039559,5]
[314109745,1707989438458,-1000.0,0.00039559,5]
[314109747,1707989438467,-1000.0,0.00039559,5]
[314109749,1707989438477,-1000.0,0.00039559,5]
[314109751,1707989438490,-1000.0,0.00039559,5]
[314109753,1707989438500,-1000.0,0.00039559,5]
[314109755,1707989438509,-1000.0,0.00039559,5]
[314109757,1707989438518,-1000.0,0.00039559,5]
[314109759,1707989438527,-1000.0,0.00039559,5]
[314109761,1707989438536,-1000.0,0.00039559,5]
[314109763,1707989438545,-1000.0,0.00039559,5]
[314109765,1707989438556,-1000.0,0.00039559,5]
[314109767,1707989438565,-1000.0,0.00039559,5]
[314109769,1707989438575,-1000.0,0.00039559,5]
[314109771,1707989438584,-1000.0,0.00039559,5]
[314109773,1707989438593,-1000.0,0.00039559,5]
[314109775,1707989438602,-1000.0,0.00039559,5]
[314109777,1707989438612,-1000.0,0.00039559,5]
[314109779,1707989438621,-1000.0,0.00039559,5]
[314109781,1707989438630,-1000.0,0.00039559,5]
[314109783,1707989438640,-1000.0,0.00039559,5]
[314109785,1707989438649,-1000.0,0.00039559,5]
[314109788,1707989438661,-1000.0,0.00039559,5]
[314109789,1707989438671,-1000.0,0.00039559,5]
[314109791,1707989438682,-1000.0,0.00039559,5]
[314109794,1707989438693,-1000.0,0.00039559,5]
[314109796,1707989438704,-1000.0,0.00039559,5]
[314109798,1707989438714,-1000.0,0.00039559,5]
[314109800,1707989438723,-1000.0,0.00039559,5]
[314109802,1707989438732,-1000.0,0.00039559,5]
[314109804,1707989438746,-1000.0,0.00039559,5]
[314109806,1707989438756,-1000.0,0.00039559,5]
[314109808,1707989438765,-1000.0,0.00039559,5]
[314109810,1707989438775,-1000.0,0.00039559,5]
[314109812,1707989438784,-1000.0,0.00039559,5]
[314109814,1707989438794,-1000.0,0.00039559,5]
[314109816,1707989438804,-1000.0,0.00039559,5]
[314109818,1707989438814,-1000.0,0.00039559,5]
[314109820,1707989438823,-395.86771332,0.00039559,5]
[314109999,1707989440487,-308.33112527,0.00039559,5]
[314110006,1707989440543,-295.80116141,0.00039559,5]
[314110008,1707989440553,-1000.0,0.00039559,5]
[314110011,1707989440562,-1000.0,0.00039559,5]
[314110013,1707989440571,-1000.0,0.00039559,5]
[314110015,1707989440581,-446.11703911,0.00039559,5]
[314110088,1707989441250,-553.88296089,0.00039559,5]
[314110090,1707989441260,-1000.0,0.00039559,5]
[314110092,1707989441269,-1000.0,0.00039559,5]
[314110094,1707989441279,-1000.0,0.00039559,5]
[314110096,1707989441289,-1000.0,0.00039559,5]
[314110098,1707989441299,-1000.0,0.00039559,5]
[314110100,1707989441308,-1000.0,0.00039559,5]
[314110102,1707989441318,-1000.0,0.00039559,5]
[314110104,1707989441328,-1000.0,0.00039559,5]
[314110106,1707989441337,-1000.0,0.00039559,5]
[314110108,1707989441347,-1000.0,0.00039559,5]
[314110110,1707989441356,-1000.0,0.00039559,5]
[314110112,1707989441365,-1000.0,0.00039559,5]
[314110114,1707989441375,-1000.0,0.00039559,5]
[314110116,1707989441384,-1000.0,0.00039559,5]
[314110118,1707989441393,-392.0,0.00039559,5]
[314110120,1707989441402,-500.0,0.00039559,7]
[314110122,1707989441411,-500.0,0.00039559,7]
[314110124,1707989441420,-500.0,0.00039559,2]
[314110126,1707989441429,-522.91648129,0.00039559,7]
[314110128,1707989441440,-500.0,0.00039559,7]
[314110131,1707989441449,-500.0,0.00039559,7]
[314110133,1707989441458,-500.0,0.00039559,7]
[314110135,1707989441468,-500.0,0.00039559,7]
[314110137,1707989441480,-500.0,0.00039559,7]
[314110138,1707989441489,-500.0,0.00039559,7]
[314110139,1707989441499,-500.0,0.00039559,7]
[314110140,1707989441508,-511.99408962,0.00039559,7]
[314110141,1707989441517,-412.59212032,0.00039559,7]
[314110142,1707989441527,-513.8703283,0.00039559,7]
[314110143,1707989441536,-500.0,0.00039559,7]
[314110144,1707989441545,-285.63499509,0.00039559,7]
[314110146,1707989441554,-500.0,0.00039559,7]
[314110148,1707989441563,-500.0,0.00039559,7]
[314110150,1707989441572,-257.64703327,0.00039559,7]
[314110152,1707989441582,-151.021517,0.00039598,19]
[314110154,1707989441591,-1031.62,0.00039628,7]
[314110156,1707989441601,-503.67,0.00039628,7]
[314110158,1707989441610,-526.71,0.00039628,7]
[314110160,1707989441619,-216.7,0.00039628,7]
[314110162,1707989441628,-500.0,0.00039628,7]
[314110164,1707989441637,-565.46,0.00039628,7]
[314110166,1707989441647,-575.25,0.00039628,7]
[314110168,1707989441656,-500.0,0.00039629,7]
[314110170,1707989441667,-937.51,0.00039629,7]
[314110192,1707989441867,-597.8,0.00039629,7]
[314110194,1707989441877,-500.0,0.00039629,7]
[314110196,1707989441887,-11540.58,0.00039629,7]
[314110198,1707989441896,-500.0,0.00039629,7]
[314110200,1707989441905,-500.0,0.00039629,7]
[314110202,1707989441915,-273.16275086,0.00039629,7]
[314110204,1707989441926,-500.0,0.00039629,7]
[314110206,1707989441936,-537.26443749,0.00039629,7]
[314110208,1707989441946,-500.0,0.00039629,7]
[314110210,1707989441955,-500.0,0.00039629,7]
[314110212,1707989441963,-516.43466872,0.00039644,7]
[314110214,1707989441972,-500.0,0.00039644,7]
[314110216,1707989441981,-500.0,0.00039644,7]
[314110218,1707989441990,-500.0,0.00039644,7]
[314110220,1707989441999,-500.0,0.00039644,7]
[314110222,1707989442008,-500.0,0.00039644,7]
[314110224,1707989442018,-500.0,0.00039644,7]
[314110226,1707989442027,-500.0,0.00039644,7]
[314110228,1707989442037,-500.0,0.00039644,7]
[314110230,1707989442046,-500.0,0.00039644,7]
[314110232,1707989442055,-500.0,0.00039644,7]
[314110234,1707989442064,-500.0,0.00039644,7]
[314110236,1707989442073,-151.021518,0.00039698,19]
[314110237,1707989442083,-7771.9711,0.000397,2]
[314110239,1707989442092,-1000.0,0.000397,2]
[314110240,1707989442101,-151.021518,0.00039748,21]
[314110241,1707989442110,-302.043036,0.00039748,21]
[314110242,1707989442121,-1200.0,0.000398,20]
[314110243,1707989442130,-1200.0,0.000398,20]
[314110244,1707989442139,-500.0,0.00039832,7]
[314110245,1707989442148,-500.0,0.00039832,7]
[314110246,1707989442157,-683.97,0.00039832,7]
[314110247,1707989442166,-500.0,0.00039832,7]
[314110248,1707989442175,-500.0,0.00039832,7]
[314110249,1707989442185,-237.00824769,0.00039833,7]
[314110250,1707989442195,-150.0,0.00039888,2]
[314110251,1707989442204,-150.0,0.00039888,2]
[314110252,1707989442213,-503.18340659,0.0003989,2]
[314110253,1707989442221,-510.01723771,0.0003989,2]
[314110254,1707989442231,-500.0,0.00039899,7]
[314110255,1707989442240,-215.76541991,0.00039899,7]
[314110257,1707989442249,-752.41,0.00039899,7]
[314110259,1707989442258,-500.0,0.00039899,7]
[314110261,1707989442267,-500.0,0.00039899,7]
[314110263,1707989442276,-500.0,0.00039899,7]
[314110265,1707989442285,-500.0,0.00039899,7]
[314110267,1707989442294,-500.0,0.00039899,7]
[314110268,1707989442303,-500.0,0.00039899,7]
[314110270,1707989442312,-500.0,0.00039899,7]
[314110272,1707989442321,-500.0,0.00039899,7]
[314110275,1707989442331,-230.41730696,0.00039899,7]
[314110277,1707989442340,-454.60545152,0.00039899,7]
[314110279,1707989442349,-500.0,0.00039899,7]
[314110280,1707989442358,-500.0,0.00039899,7]
[314110282,1707989442367,-500.0,0.00039899,7]
[314110284,1707989442376,-500.0,0.00039899,7]
[314110286,1707989442385,-520.82812731,0.00039899,7]
[314110288,1707989442394,-440.96218042,0.00039899,7]
[314110290,1707989442403,-500.0,0.00039899,7]
[314110292,1707989442412,-507.22938733,0.00039899,7]
[314110294,1707989442421,-500.0,0.00039899,7]
[314110296,1707989442430,-590.64061557,0.00039899,7]
[314110298,1707989442439,-503.00480584,0.00039899,7]
[314110300,1707989442449,-500.0,0.00039899,7]
[314110302,1707989442458,-516.95198025,0.00039899,7]
[314110304,1707989442467,-500.0,0.00039899,7]
[314110306,1707989442477,-184.4377135,0.00039899,7]
[314110308,1707989442486,-500.0,0.00039899,7]
[314110311,1707989442496,-616.79800319,0.00039899,7]
[314110313,1707989442505,-627.49165254,0.00039899,7]
[314110315,1707989442513,-207.28284698,0.00039899,7]
[314110316,1707989442522,-569.16950451,0.00039899,7]
[314110317,1707989442532,-517.9809119,0.00039899,7]
[314110318,1707989442541,-166.59944788,0.00039899,7]
[314110319,1707989442551,-500.0,0.00039899,7]
[314110320,1707989442559,-518.64787854,0.00039899,2]
[314110321,1707989442569,-500.0,0.00039899,7]
[314110322,1707989442578,-525.74696652,0.00039899,7]
[314110323,1707989442587,-510.45144748,0.00039899,7]
[314110324,1707989442596,-164.58900282,0.00039899,7]
[314110325,1707989442606,-500.0,0.00039899,7]
[314110326,1707989442615,-500.0,0.00039899,7]
[314110327,1707989442624,-500.0,0.00039899,7]
[314110328,1707989442633,-521.21717787,0.00039899,7]
[314110329,1707989442642,-500.0,0.00039899,7]
[314110330,1707989442651,-316.96052511,0.00039899,7]
[314110331,1707989442661,-500.0,0.00039899,7]
[314110332,1707989442674,-500.0,0.00039899,7]
[314110333,1707989442683,-500.0,0.00039899,7]
[314110334,1707989442693,-500.0,0.00039899,7]
[314110335,1707989442703,-500.0,0.00039899,7]
[314110336,1707989442712,-500.0,0.00039899,7]
[314110337,1707989442721,-519.98024592,0.00039899,7]
[314110338,1707989442730,-500.0,0.00039899,7]
[314110339,1707989442739,-508.03835124,0.00039899,7]
[314110340,1707989442751,-500.0,0.00039899,7]
[314110341,1707989442760,-500.0,0.00039899,2]
[314110342,1707989442769,-502.4057207,0.00039899,7]
[314110343,1707989442778,-524.85931255,0.00039899,7]
[314110344,1707989442787,-527.49647434,0.00039899,7]
[314110345,1707989442796,-500.00448975,0.00039899,7]
[314110346,1707989442805,-252.93849803,0.00039899,7]
[314110347,1707989442814,-500.0,0.00039899,7]
[314110348,1707989442823,-301.10678522,0.00039899,7]
[314110349,1707989442832,-500.0,0.00039899,7]
[314110350,1707989442841,-504.86225969,0.00039899,7]
[314110351,1707989442850,-500.0,0.00039899,7]
[314110352,1707989442859,-500.0,0.00039899,7]
[314110353,1707989442868,-560.65,0.00039899,7]
[314110354,1707989442879,-500.0,0.00039899,7]
[314110355,1707989442889,-500.0,0.00039899,7]
[314110356,1707989442898,-604.37346095,0.00039899,7]
[314110357,1707989442907,-500.0,0.00039899,7]
[314110358,1707989442918,-500.0,0.00039899,7]
[314110359,1707989442927,-638.22819831,0.00039899,7]
[314110360,1707989442937,-500.0,0.00039899,7]
[314110361,1707989442947,-500.0,0.00039899,7]
[314110362,1707989442956,-500.0,0.00039899,7]
[314110363,1707989442965,-500.0,0.00039899,7]
[314110364,1707989442975,-500.0,0.00039899,7]
[314110365,1707989442985,-500.0,0.00039899,7]
[314110366,1707989442994,-500.0,0.00039899,7]
[314110367,1707989443003,-500.0,0.00039899,7]
[314110368,1707989443012,-500.0,0.00039899,7]
[314110369,1707989443022,-500.0,0.00039899,7]
[314110370,1707989443032,-500.0,0.00039899,7]
[314110371,1707989443041,-806.9855,0.000399,2]
[314110372,1707989443050,-2205.80486639,0.000399,13]
[314110373,1707989443061,-178.74434188,0.000399,2]
[314110374,1707989443070,-162.59564128,0.000399,2]
[314110375,1707989443079,-182.51967664,0.000399,4]
[314110376,1707989443089,-1362.0,0.000399,7]
[314110377,1707989443098,-1031.62,0.00039902,7]
[314110378,1707989443108,-500.0,0.00039902,7]
[314110379,1707989443117,-937.51,0.00039903,7]
[314110380,1707989443126,-597.8,0.00039903,7]
[314110381,1707989443135,-500.0,0.00039903,7]
[314110382,1707989443144,-11540.58,0.00039903,7]
[314110383,1707989443153,-500.0,0.00039903,7]
[314110384,1707989443162,-199.85791404,0.0003997,2]
[314110385,1707989443171,-157.26913558,0.00039979,3]
[314110386,1707989443180,-19722.87286633,0.0003998,5]
[314110387,1707989443201,-277.24778743,0.0003998,5]
[314110388,1707989443228,-2368.52980108,0.0003998,5]
[314110389,1707989443243,-3946.81156972,0.0003998,5]
[314110390,1707989444204,-0.0031649,0.0003998,5]
[314110391,1707989444244,-6714.28513764,0.0003998,5]
[314110392,1707989444256,-13075.53222507,0.0003998,5]
[314110393,1707989444304,-2701.7406062,0.0003998,5]
[314110394,1707989444315,-3915.39565918,0.0003998,5]
[314110405,1707989445732,-945.65,0.00039558,7]
[314110406,1707989445742,-245.56398545,0.00039628,7]
[314110407,1707989445757,-254.43601455,0.00039628,7]
[314110408,1707989445766,-945.65,0.00039832,7]
[314110409,1707989445775,-588.94999999,0.0003998,5]
[314110410,1707989445786,-591.72647706,0.0003998,5]
[314110411,1707989445848,-366.86,0.00039902,7]
[314110412,1707989445858,-127.61191038,0.0003998,5]
[314110413,1707989445870,-40845.21559342,0.0003998,5]
[314110414,1707989445879,-151.0,0.0003998,7]
[314110415,1707989445887,-13513.93300812,0.0003998,5]
[314110416,1707989445899,-510.02846391,0.0003998,5]
[314110417,1707989445911,-3302.68931943,0.0003998,5]
[314110418,1707989445922,-3094.17959164,0.0003998,5]
[314110419,1707989445933,-1413.47287796,0.0003998,5]
[314110420,1707989445944,-9420.135275,0.0003998,5]
[314110421,1707989445974,-561.07143045,0.0003998,5]
[314110422,1707989445985,-763.70530403,0.0003998,5]
[314110423,1707989445996,-3316.01377146,0.0003998,5]
[314110424,1707989446007,-559.88359214,0.0003998,5]
[314110425,1707989446019,-333.70314074,0.0003998,5]
[314110426,1707989446030,-1293.75571553,0.0003998,5]
[314110427,1707989446041,-2708.879999,0.0003998,5]
[314110428,1707989446057,-2730.22707861,0.0003998,5]
[314110430,1707990631866,-150.5,0.0003009,2]
[314110431,1707990631876,-150.93,0.00030095,2]
[314110432,1707990631887,-200.0,0.000301,5]
[314110433,1707990631897,-205.0,0.0003373,2]
[314110434,1707990631908,-152.32374739,0.0003407,2]
[314110435,1707990631917,-150.0,0.00034096,3]
[314110436,1707990631926,-5704.86836865,0.00034097,10]
[314110437,1707990631939,-4448.62138191,0.00034097,10]
[314110438,1707990631952,-1193.72092653,0.00034097,10]
[314110439,1707990631963,-2776.38512582,0.00034097,10]
[314110440,1707990631975,-582.55125383,0.00034097,10]
[314110441,1707990631986,-886.72698919,0.00034097,10]